bitfinex/quotes_BTCUSD_20240607
["timestamp","ask_amount","ask_price","bid_price","bid_amount"]
[1717744271604,0.0009,71203.0,71202.0,1.05749982]
[1717744272954,0.0019,71203.0,71202.0,1.05849982]
[1717744273165,0.0019,71203.0,71202.0,0.9532815]
[1717744274073,0.0019,71203.0,71202.0,0.96381713]
[1717744274300,0.0029,71203.0,71202.0,0.97481713]
[1717744274514,0.0029,71203.0,71202.0,0.9642815]
[1717744276506,0.0029,71203.0,71202.0,1.0642815]
[1717744276721,0.0029,71203.0,71202.0,1.04996121]
[1717744278270,0.0029,71203.0,71202.0,1.04712447]
[1717744280891,0.0029,71203.0,71202.0,1.32801447]
[1717744281105,0.0029,71203.0,71202.0,1.42801447]
[1717744281318,0.0029,71203.0,71202.0,1.65410076]
[1717744281771,0.0029,71203.0,71202.0,1.52795498]
[1717744281974,0.00219822,71203.0,71202.0,1.52795498]
[1717744282172,0.00119822,71203.0,71202.0,1.65299562]
[1717744282598,0.00119822,71203.0,71202.0,1.66299562]
[1717744282599,0.00219822,71203.0,71202.0,1.66299562]
[1717744282839,0.00219822,71203.0,71202.0,1.66299495]
[1717744283055,0.00119822,71203.0,71202.0,1.65199495]
[1717744283474,0.00119822,71203.0,71202.0,1.66599495]
[1717744283684,0.00119822,71203.0,71202.0,1.53995498]
[1717744283933,0.00119822,71203.0,71202.0,1.65199495]
[1717744284170,0.00119822,71203.0,71202.0,1.52595498]
[1717744284386,0.00119822,71203.0,71202.0,1.53995498]
[1717744284813,0.00086,71212.0,71211.0,0.250427]
[1717744285020,0.00086,71212.0,71211.0,1.24337987]
[1717744285235,0.24676,71212.0,71211.0,0.53148733]
[1717744285489,0.24676,71212.0,71211.0,0.2401734]
[1717744285703,0.45876,71212.0,71211.0,0.2401734]
[1717744285920,0.44676,71212.0,71211.0,0.2401734]
[1717744286356,0.24676,71212.0,71211.0,0.2541734]
[1717744286629,0.44876,71212.0,71211.0,0.2541734]
[1717744286892,0.24676,71212.0,71211.0,0.2541734]
[1717744287158,0.44676,71212.0,71211.0,0.2401734]
[1717744287474,0.24676,71212.0,71211.0,0.2491734]
[1717744288032,0.44876,71212.0,71211.0,0.2491734]
[1717744288223,0.45876,71212.0,71211.0,0.2571734]
[1717744288488,0.44876,71212.0,71211.0,0.2571734]
[1717744289602,0.45876,71212.0,71211.0,0.2571734]
[1717744289825,0.44876,71212.0,71211.0,0.2571734]
[1717744290056,0.44876,71212.0,71211.0,0.24285311]
[1717744290752,0.24676,71212.0,71211.0,0.24285311]
[1717744290966,0.44876,71212.0,71211.0,0.24285311]
[1717744291630,0.45876,71212.0,71211.0,0.24285311]
[1717744291839,0.24876,71212.0,71211.0,0.24285311]
[1717744291974,0.45876,71212.0,71211.0,0.24285311]
[1717744293065,0.667285,71212.0,71211.0,0.017]
[1717744293281,0.212,71202.0,71201.0,0.000946]
[1717744293510,0.4522,71202.0,71201.0,0.01526629]
[1717744294666,0.4522,71202.0,71201.0,0.02926629]
[1717744294875,0.4522,71202.0,71201.0,0.04326629]
[1717744297571,0.4402,71202.0,71201.0,0.04326629]
[1717744297779,0.4422,71202.0,71201.0,0.04326629]
[1717744298600,0.4422,71202.0,71201.0,0.028946]
[1717744299576,0.4522,71202.0,71201.0,0.028946]
[1717744300451,0.2402,71202.0,71201.0,0.028946]
[1717744300662,0.4422,71202.0,71201.0,0.028946]
[1717744302019,0.4522,71202.0,71201.0,0.028946]
[1717744303273,0.4422,71202.0,71201.0,0.028946]
[1717744303502,0.4522,71202.0,71201.0,0.028946]
[1717744304608,0.2402,71202.0,71201.0,0.028946]
[1717744304810,0.4422,71202.0,71201.0,0.028946]
[1717744323094,0.4402,71202.0,71201.0,0.028946]
[1717744323646,0.4422,71202.0,71201.0,0.028946]
[1717744325233,0.4522,71202.0,71201.0,0.028946]
[1717744325661,0.4422,71202.0,71201.0,0.028946]
[1717744330905,0.4402,71202.0,71201.0,0.028946]
[1717744331340,0.4422,71202.0,71201.0,0.028946]
[1717744333439,0.4402,71202.0,71201.0,0.028946]
[1717744333660,0.4422,71202.0,71201.0,0.028946]
[1717744334349,0.4402,71202.0,71201.0,0.028946]
[1717744335500,0.2402,71202.0,71201.0,0.028946]
[1717744339032,0.2402,71202.0,71201.0,0.26120451]
[1717744339248,0.2402,71202.0,71201.0,0.09199176]
[1717744339461,0.2402,71202.0,71201.0,0.07108447]
[1717744342091,0.2402,71202.0,71201.0,0.028946]
[1717744342301,0.2402,71202.0,71201.0,0.07108551]
[1717744342512,0.2402,71202.0,71201.0,0.028946]
[1717744342937,0.2402,71202.0,71201.0,0.07108512]
[1717744343985,0.4422,71202.0,71201.0,0.07108512]
[1717744344210,0.2402,71202.0,71201.0,0.07108512]
[1717744345900,0.2402,71202.0,71201.0,0.028946]
[1717744348515,0.2402,71202.0,71201.0,0.07108431]
[1717744348955,0.2402,71202.0,71201.0,0.028946]
[1717744349611,0.2402,71202.0,71201.0,0.07108517]
[1717744351022,0.082,71202.0,71201.0,0.07108517]
[1717744351607,0.082,71202.0,71201.0,0.07108548]
[1717744352923,0.082,71202.0,71201.0,0.07108551]
[1717744354901,0.082,71202.0,71201.0,0.07108538]
[1717744355545,0.00086,71203.0,71201.0,0.07108538]
[1717744355774,0.00086,71203.0,71202.0,0.01]
[1717744355993,0.00086,71203.0,71202.0,0.53195084]
[1717744356201,0.00086,71203.0,71202.0,0.64672453]
[1717744356413,0.00086,71203.0,71202.0,0.73100329]
[1717744356835,0.00186,71203.0,71202.0,0.73100329]
[1717744357246,0.00286,71203.0,71202.0,0.74500329]
[1717744357457,0.00286,71203.0,71202.0,0.66072453]
[1717744358365,0.00186,71203.0,71202.0,0.66072453]
[1717744358574,0.00286,71203.0,71202.0,0.67472453]
[1717744359846,0.00286,71203.0,71202.0,0.60662453]
[1717744360253,0.00286,71203.0,71202.0,0.66979157]
[1717744361079,0.00286,71203.0,71202.0,0.65979157]
[1717744361324,0.00286,71203.0,71202.0,0.54429157]
[1717744361562,0.00286,71203.0,71202.0,0.37603097]
[1717744364219,0.00286,71203.0,71202.0,0.38603097]
[1717744364400,0.00286,71203.0,71202.0,0.32286393]
[1717744365572,0.00286,71203.0,71202.0,0.31286393]
[1717744365959,0.00286,71203.0,71202.0,0.32286393]
[1717744366800,0.00286,71203.0,71202.0,0.31286393]
[1717744367013,0.00286,71203.0,71202.0,0.32286393]
[1717744368805,0.00286,71203.0,71202.0,0.31380993]
[1717744371116,0.42986,71203.0,71202.0,0.028946]
[1717744371334,0.43186,71203.0,71202.0,0.028946]
[1717744371562,0.22986,71203.0,71202.0,0.028946]
[1717744372459,0.42986,71203.0,71202.0,0.028946]
[1717744372672,0.22986,71203.0,71202.0,0.028946]
[1717744380282,0.43186,71203.0,71202.0,0.028946]
[1717744380488,0.22986,71203.0,71202.0,0.028946]
[1717744382303,0.44186,71203.0,71202.0,0.028946]
[1717744382500,0.43186,71203.0,71202.0,0.028946]
[1717744382962,0.22986,71203.0,71202.0,0.028946]
[1717744385924,0.42986,71203.0,71202.0,0.028946]
[1717744386132,0.22986,71203.0,71202.0,0.028946]
[1717744387907,0.42986,71203.0,71202.0,0.028946]
[1717744388348,0.22986,71203.0,71202.0,0.028946]
[1717744390518,0.42986,71203.0,71202.0,0.028946]
[1717744391174,0.22986,71203.0,71202.0,0.028946]
[1717744392985,0.79548,71203.0,71202.0,0.028946]
[1717744395382,0.99548,71203.0,71202.0,0.028946]
[1717744395580,0.79548,71203.0,71202.0,0.028946]
[1717744397150,0.99548,71203.0,71202.0,0.028946]
[1717744397597,0.79548,71203.0,71202.0,0.028946]
[1717744398023,0.99748,71203.0,71202.0,0.028946]
[1717744398858,0.79548,71203.0,71202.0,0.028946]
[1717744399470,0.99748,71203.0,71202.0,0.028946]
[1717744400186,0.79548,71203.0,71202.0,0.028946]
[1717744404951,0.79548,71203.0,71202.0,0.02805906]
[1717744405171,0.79548,71203.0,71202.0,0.02761785]
[1717744416240,0.79548,71203.0,71202.0,0.06972289]
[1717744428412,0.64528,71203.0,71202.0,0.06972289]
[1717744430005,0.64528,71203.0,71202.0,0.06976456]
[1717744430833,0.56848,71203.0,71202.0,0.22418349]
[1717744431049,0.56848,71203.0,71202.0,0.33968349]
[1717744431476,0.56848,71203.0,71202.0,0.65209825]
[1717744432327,0.56848,71203.0,71202.0,0.83639253]
[1717744432534,0.56848,71203.0,71202.0,0.64209825]
[1717744437350,0.56848,71203.0,71202.0,0.57887819]
[1717744439057,0.56848,71203.0,71202.0,0.46337819]
[1717744445346,0.56848,71203.0,71202.0,0.46293072]
[1717744452749,0.56848,71203.0,71202.0,0.66143072]
[1717744452964,0.56848,71203.0,71202.0,0.85529875]
[1717744454248,0.56848,71203.0,71202.0,0.84529875]
[1717744454473,0.56848,71203.0,71202.0,0.85529875]
[1717744454620,0.56848,71203.0,71202.0,0.84529875]
[1717744455031,0.56848,71203.0,71202.0,0.85529875]
[1717744455255,0.56848,71203.0,71202.0,0.84529875]
[1717744455665,0.56848,71203.0,71202.0,0.74679875]
[1717744456035,0.56848,71203.0,71202.0,0.81489875]
[1717744456468,0.56848,71203.0,71202.0,0.93039875]
[1717744456624,0.56848,71203.0,71202.0,0.81489875]
[1717744457072,0.56848,71203.0,71202.0,0.81265479]
[1717744457295,0.56848,71203.0,71202.0,0.82265479]
[1717744457499,0.56848,71203.0,71202.0,0.81265479]
[1717744458191,0.56848,71203.0,71202.0,0.81259401]
[1717744458431,0.56848,71203.0,71202.0,0.82259401]
[1717744458689,0.56848,71203.0,71202.0,0.81259009]
[1717744459689,0.56848,71203.0,71202.0,0.82259009]
[1717744461150,0.56848,71203.0,71202.0,0.81259009]
[1717744462137,0.56648,71203.0,71202.0,0.78636571]
[1717744462367,0.56648,71203.0,71202.0,0.77636571]
[1717744462773,0.56648,71203.0,71202.0,0.76236571]
[1717744463642,0.56648,71203.0,71202.0,0.77636571]
[1717744464067,0.56648,71203.0,71202.0,0.76236571]
[1717744464276,0.56648,71203.0,71202.0,0.78636571]
[1717744464491,0.56648,71203.0,71202.0,0.80036571]
[1717744465139,0.56648,71203.0,71202.0,0.79991556]
[1717744466892,0.56648,71203.0,71202.0,0.78991556]
[1717744467164,0.56648,71203.0,71202.0,0.79991556]
[1717744467819,0.56648,71203.0,71202.0,0.78991556]
[1717744468034,0.56648,71203.0,71202.0,0.79991556]
[1717744470416,0.56648,71203.0,71202.0,0.60835619]
[1717744470623,0.56648,71203.0,71202.0,0.7981108]
[1717744470848,0.56648,71203.0,71202.0,0.8081108]
[1717744471489,0.56648,71203.0,71202.0,0.7981108]
[1717744473586,0.56648,71203.0,71202.0,0.8081108]
[1717744473784,0.56648,71203.0,71202.0,0.7981108]
[1717744474229,0.56648,71203.0,71202.0,0.8081108]
[1717744475536,0.56648,71203.0,71202.0,0.7981108]
[1717744475780,0.56648,71203.0,71202.0,0.8081108]
[1717744476928,0.56648,71203.0,71202.0,0.80808647]
[1717744477542,0.56648,71203.0,71202.0,0.89231653]
[1717744477988,0.56648,71203.0,71202.0,0.8920879]
[1717744478328,0.56648,71203.0,71202.0,0.89208524]
[1717744478523,0.56648,71203.0,71202.0,0.88208524]
[1717744478783,0.56648,71203.0,71202.0,0.89208524]
[1717744479033,0.56648,71203.0,71202.0,0.88208524]
[1717744479450,0.56648,71203.0,71202.0,0.79783843]
[1717744479677,0.56648,71203.0,71202.0,0.80783843]
[1717744479859,0.56648,71203.0,71202.0,0.79783843]
[1717744480752,0.56648,71203.0,71202.0,0.79783416]
[1717744482622,0.56648,71203.0,71202.0,0.90314267]
[1717744483011,0.56648,71203.0,71202.0,0.79783416]
[1717744485263,0.56648,71203.0,71202.0,0.93827916]
[1717744489944,0.56648,71203.0,71202.0,0.94827916]
[1717744490145,0.56648,71203.0,71202.0,0.93827916]
[1717744492485,0.56648,71203.0,71202.0,0.94244053]
[1717744492698,0.56648,71203.0,71202.0,0.95244053]
[1717744493125,0.56648,71203.0,71202.0,0.87434053]
[1717744493332,0.56648,71203.0,71202.0,0.95244053]
[1717744493568,0.56648,71203.0,71202.0,0.94244053]
[1717744494004,0.56648,71203.0,71202.0,1.05774378]
[1717744494444,0.56613049,71203.0,71202.0,1.04774378]
[1717744495147,0.56613049,71203.0,71202.0,1.04868978]
[1717744495778,0.56613049,71203.0,71202.0,0.74971593]
[1717744495983,0.56613049,71203.0,71202.0,1.06434989]
[1717744496620,0.56613049,71203.0,71202.0,1.06414907]
[1717744496772,0.56613049,71203.0,71202.0,0.85503121]
[1717744496973,0.56613049,71203.0,71202.0,1.06414919]
[1717744497841,0.56613049,71203.0,71202.0,1.06412562]
[1717744498046,0.56613049,71203.0,71202.0,0.99602562]
[1717744498249,0.56613049,71203.0,71202.0,1.06412513]
[1717744498450,0.56613049,71203.0,71202.0,1.16730546]
[1717744498963,0.56613049,71203.0,71202.0,1.19518906]
[1717744499372,0.56613049,71203.0,71202.0,1.06880546]
[1717744499987,0.56613049,71203.0,71202.0,1.06539872]
[1717744500198,0.56613049,71203.0,71202.0,1.06537689]
[1717744500844,0.56613049,71203.0,71202.0,0.99727689]
[1717744501082,0.56613049,71203.0,71202.0,1.06537689]
[1717744501301,0.56613049,71203.0,71202.0,0.98727689]
[1717744501541,0.80543049,71203.0,71202.0,1.05537689]
[1717744502217,0.56613049,71203.0,71202.0,0.66636211]
[1717744502448,1.01743049,71203.0,71202.0,0.52591711]
[1717744502691,1.01743049,71203.0,71202.0,0.61015157]
[1717744502951,1.01743049,71203.0,71202.0,0.58909307]
[1717744506361,1.01743049,71203.0,71202.0,0.028946]
[1717744507407,1.01743049,71203.0,71202.0,0.014946]
[1717744507625,1.01743049,71203.0,71202.0,0.024946]
[1717744507837,1.01743049,71203.0,71202.0,0.010946]
[1717744508070,1.01743049,71203.0,71202.0,0.000946]
[1717744508279,1.01743049,71203.0,71202.0,0.021946]
[1717744508715,1.01743049,71203.0,71202.0,0.009946]
[1717744509158,1.01743049,71203.0,71202.0,0.020946]
[1717744512084,0.232,71202.0,71201.0,0.000946]
[1717744512299,0.608245,71202.0,71201.0,0.000946]
[1717744513219,0.588245,71202.0,71201.0,0.000946]
[1717744513445,0.588245,71202.0,71201.0,0.012946]
[1717744514066,0.589245,71202.0,71201.0,0.022946]
[1717744514692,0.4488,71202.0,71201.0,0.022946]
[1717744519655,0.4388,71202.0,71201.0,0.022946]
[1717744519968,0.2368,71202.0,71201.0,0.022946]
[1717744521033,0.001,71202.0,71201.0,0.022946]
[1717744521250,0.001,71202.0,71201.0,0.091046]
[1717744522379,0.001,71202.0,71201.0,0.079046]
[1717744522599,0.002,71202.0,71201.0,0.093046]
[1717744523041,0.001,71202.0,71201.0,0.079046]
[1717744523283,0.56613049,71203.0,71201.0,0.069046]
[1717744523508,0.56613049,71203.0,71201.0,0.08336629]
[1717744523694,0.56613049,71203.0,71201.0,0.09736629]
[1717744523946,0.56613049,71203.0,71201.0,0.08336629]
[1717744524154,0.56613049,71203.0,71201.0,0.09336629]
[1717744524578,0.56613049,71203.0,71201.0,0.08336629]
[1717744524785,0.001,71202.0,71201.0,0.09536629]
[1717744525116,0.56613049,71203.0,71201.0,0.08336629]
[1717744525330,0.56613049,71203.0,71201.0,0.09236629]
[1717744525536,0.56713049,71203.0,71201.0,0.10436629]
[1717744526368,0.56713049,71203.0,71201.0,0.090046]
[1717744527120,0.72703049,71203.0,71201.0,0.090046]
[1717744527332,0.72703049,71203.0,71201.0,0.081046]
[1717744527781,0.72703049,71203.0,71201.0,0.091046]
[1717744528199,0.72703049,71203.0,71201.0,0.032946]
[1717744532532,0.56713049,71203.0,71201.0,0.032946]
[1717744534320,0.56713049,71203.0,71201.0,0.042946]
[1717744534721,0.56713049,71203.0,71201.0,0.032946]
[1717744535194,0.56713049,71203.0,71202.0,0.0985]
[1717744535880,0.56713049,71203.0,71201.0,0.042946]
[1717744536321,0.56713049,71203.0,71202.0,1.13748223]
[1717744536556,0.56713049,71203.0,71202.0,1.33748223]
[1717744537253,0.56613049,71203.0,71202.0,1.33748223]
[1717744537494,0.56713049,71203.0,71202.0,1.45355524]
[1717744537961,0.56613049,71203.0,71202.0,1.45155524]
[1717744538180,0.56613049,71203.0,71202.0,1.44255524]
[1717744538410,0.56713049,71203.0,71202.0,1.45655524]
[1717744538626,0.56713049,71203.0,71202.0,1.47055524]
[1717744540411,0.56713049,71203.0,71202.0,1.36548223]
[1717744541762,0.56677953,71203.0,71202.0,1.36548223]
[1717744542194,0.56677953,71203.0,71202.0,1.47055524]
[1717744542406,0.56677953,71203.0,71202.0,1.36548223]
[1717744544005,0.56677953,71203.0,71202.0,1.43358223]
[1717744545303,0.56677953,71203.0,71202.0,1.4506484]
[1717744547351,0.56677953,71203.0,71202.0,1.5068394]
[1717744547571,0.56677953,71203.0,71202.0,1.61177451]
[1717744548528,0.56677953,71203.0,71202.0,1.61175987]
[1717744549023,0.56677953,71203.0,71202.0,1.31779734]
[1717744549241,0.56677953,71203.0,71202.0,1.60406469]
[1717744549667,0.56677953,71203.0,71202.0,1.98495469]
[1717744549875,0.56677953,71203.0,71202.0,1.88003422]
[1717744550078,0.56677953,71203.0,71202.0,2.04139322]
[1717744550287,0.56577953,71203.0,71202.0,2.02739322]
[1717744550738,0.56577953,71203.0,71202.0,2.04139322]
[1717744551162,0.56577953,71203.0,71202.0,2.02739322]
[1717744551378,0.56577953,71203.0,71202.0,2.11827036]
[1717744551566,0.56577953,71203.0,71202.0,2.13227036]
[1717744551787,0.56577953,71203.0,71202.0,2.14627036]
[1717744554323,0.56577953,71203.0,71202.0,2.04139322]
[1717744554960,0.56577953,71203.0,71202.0,2.14627036]
[1717744555450,0.56577953,71203.0,71202.0,2.14503295]
[1717744555675,0.56577953,71203.0,71202.0,2.0401818]
[1717744556585,0.56577953,71203.0,71202.0,2.0190568]
[1717744556805,0.56543051,71203.0,71202.0,2.0076478]
[1717744558316,0.56543051,71203.0,71202.0,2.11249895]
[1717744559368,0.56543051,71203.0,71202.0,2.0076478]
[1717744559576,0.56543051,71203.0,71202.0,2.11249895]
[1717744560234,0.56508051,71203.0,71202.0,2.08734095]
[1717744560439,0.56508051,71203.0,71202.0,1.91557395]
[1717744560646,0.56508051,71203.0,71202.0,1.98461995]
[1717744560853,0.56594051,71203.0,71202.0,1.98461995]
[1717744561914,0.56594051,71203.0,71202.0,1.91651995]
[1717744562128,0.56594051,71203.0,71202.0,1.98461995]
[1717744562351,0.56594051,71203.0,71202.0,1.88611995]
[1717744563302,0.56594051,71203.0,71202.0,1.7812688]
[1717744563517,0.56594051,71203.0,71202.0,1.7433688]
[1717744563989,0.56594051,71203.0,71202.0,1.84826876]
[1717744564387,0.56594051,71203.0,71202.0,1.7433688]
[1717744565040,0.56238074,71203.0,71202.0,1.8797688]
[1717744565396,0.56238074,71203.0,71202.0,2.25589356]
[1717744565605,0.56238074,71203.0,71202.0,2.13007218]
[1717744571085,0.56238074,71203.0,71202.0,2.16704948]
[1717744571289,0.56238074,71203.0,71202.0,1.91160618]
[1717744572167,0.56238074,71203.0,71202.0,1.81310618]
[1717744577695,0.56238074,71203.0,71202.0,1.77520618]
[1717744578321,0.56238074,71203.0,71202.0,1.76520618]
[1717744578531,0.56238074,71203.0,71202.0,1.77520618]
[1717744580250,0.56238074,71203.0,71202.0,1.90111519]
[1717744581389,0.56238074,71203.0,71202.0,1.77520618]
[1717744591314,0.56238074,71203.0,71202.0,1.7784634]
[1717744592525,0.56238074,71203.0,71202.0,1.77895688]
[1717744594331,0.56238074,71203.0,71202.0,1.76895688]
[1717744594559,0.56238074,71203.0,71202.0,1.77895688]
[1717744594763,0.56238074,71203.0,71202.0,1.76895688]
[1717744595418,0.56238074,71203.0,71202.0,1.77895688]
[1717744597456,0.56238074,71203.0,71202.0,1.81685688]
[1717744598290,0.56238074,71203.0,71202.0,2.38854832]
[1717744598435,0.56238074,71203.0,71202.0,2.35576232]
[1717744598842,0.56238074,71203.0,71202.0,3.15526232]
[1717744599485,0.56238074,71203.0,71202.0,2.80288232]
[1717744599912,0.56238074,71203.0,71202.0,2.99174932]
[1717744600061,0.56238074,71203.0,71202.0,2.94904932]
[1717744600262,0.56238074,71203.0,71202.0,2.85054932]
[1717744600490,0.52922216,71203.0,71202.0,3.22993932]
[1717744600879,0.52922216,71203.0,71202.0,3.04341388]
[1717744601532,0.52922216,71203.0,71202.0,3.29089761]
[1717744601919,0.52922216,71203.0,71202.0,3.02941388]
[1717744602124,0.52922216,71203.0,71202.0,3.04341388]
[1717744602387,0.51422216,71203.0,71202.0,3.02941388]
[1717744602503,0.51422216,71203.0,71202.0,3.01541388]
[1717744602702,0.51422216,71203.0,71202.0,3.04341388]
[1717744603334,0.51422216,71203.0,71202.0,3.02941388]
[1717744603607,0.51422216,71203.0,71202.0,3.01541388]
[1717744603911,0.51422216,71203.0,71202.0,3.02941388]
[1717744604132,0.48322216,71203.0,71202.0,3.02941388]
[1717744604345,0.48322216,71203.0,71202.0,3.01541388]
[1717744604999,0.48322216,71203.0,71202.0,3.02941388]
[1717744605347,0.48322216,71203.0,71202.0,3.01541388]
[1717744605558,0.41522216,71203.0,71202.0,3.01541388]
[1717744605797,0.41522216,71203.0,71202.0,3.04341388]
[1717744606375,0.40622216,71203.0,71202.0,3.04341388]
[1717744607816,0.40311524,71203.0,71202.0,3.04341388]
[1717744608649,0.00086,71211.0,71210.0,0.729788]
[1717744608790,0.0757,71221.0,71220.0,0.250409]
[1717744609008,0.0757,71221.0,71220.0,1.26399033]
[1717744609487,0.0757,71221.0,71220.0,1.29582759]
[1717744610229,0.0757,71221.0,71220.0,1.39012216]
[1717744610480,0.0757,71221.0,71220.0,1.40412249]
[1717744610946,0.0757,71221.0,71220.0,1.41812249]
[1717744611161,0.0757,71221.0,71220.0,1.29199033]
[1717744611376,0.15336,71223.0,71222.0,0.250406]
[1717744611377,0.00086,71223.0,71222.0,0.250406]
[1717744611634,0.08126,71223.0,71222.0,0.97003422]
[1717744612268,0.00086,71223.0,71222.0,0.97003422]
[1717744612894,0.00086,71223.0,71222.0,0.95556397]
[1717744613591,0.04195861,71265.0,71248.0,0.240354]
[1717744613815,0.17096,71259.0,71248.0,0.69717457]
[1717744614048,0.17096,71259.0,71248.0,0.98029335]
[1717744614290,0.079,71251.0,71248.0,1.03973983]
[1717744614517,0.079,71251.0,71248.0,1.14462388]
[1717744614737,0.079,71251.0,71248.0,1.03973983]
[1717744615175,0.079,71251.0,71248.0,1.16540401]
[1717744615401,0.079,71251.0,71248.0,1.09730401]
[1717744615615,0.079,71251.0,71248.0,1.19695975]
[1717744616041,0.079,71251.0,71248.0,1.11312709]
[1717744616251,0.079,71251.0,71248.0,0.99393609]
[1717744616429,0.079,71251.0,71248.0,0.93110609]
[1717744616677,0.0787,71252.0,71248.0,0.93110609]
[1717744617370,0.16126,71249.0,71248.0,0.93110609]
[1717744617987,0.16126,71249.0,71248.0,0.94510609]
[1717744618637,0.16126,71249.0,71248.0,0.93110609]
[1717744618841,0.16126,71249.0,71248.0,0.9167858]
[1717744619080,0.16126,71249.0,71248.0,0.9307858]
[1717744619282,0.16126,71249.0,71248.0,0.9027858]
[1717744619505,0.16126,71249.0,71248.0,0.8246858]
[1717744619725,0.00686,71249.0,71248.0,0.98895428]
[1717744619932,0.00486,71259.0,71252.0,0.250346]
[1717744620169,0.00486,71259.0,71252.0,0.57718522]
[1717744620416,0.00486,71259.0,71252.0,0.7196844]
[1717744621322,0.00486,71259.0,71252.0,0.75192751]
[1717744621798,0.00486,71259.0,71252.0,0.66592751]
[1717744622002,0.00486,71259.0,71252.0,0.73760722]
[1717744622428,0.00486,71259.0,71252.0,0.75160722]
[1717744622636,0.00486,71259.0,71252.0,0.73760722]
[1717744623065,0.00486,71259.0,71252.0,0.76560722]
[1717744623492,0.00486,71259.0,71252.0,0.75160722]
[1717744623914,0.00486,71259.0,71252.0,0.73336411]
[1717744624133,0.00486,71259.0,71252.0,0.56526411]
[1717744624364,0.1613,71256.0,71252.0,0.6695844]
[1717744624710,0.07996093,71253.0,71252.0,0.75133722]
[1717744624796,0.07996093,71253.0,71252.0,0.76133722]
[1717744625222,0.07996093,71253.0,71252.0,0.74701693]
[1717744625667,0.07996093,71253.0,71252.0,0.73701693]
[1717744626087,0.07996093,71253.0,71252.0,0.74701693]
[1717744629129,0.07996093,71253.0,71252.0,0.73701693]
[1717744629348,0.07996093,71253.0,71252.0,0.66891693]
[1717744629521,0.07996093,71253.0,71252.0,0.73701693]
[1717744629979,0.07996093,71253.0,71252.0,0.74701693]
[1717744631037,0.00036093,71253.0,71252.0,1.02770993]
[1717744631267,0.00036093,71253.0,71252.0,0.92770993]
[1717744631503,0.00036093,71253.0,71252.0,1.02770993]
[1717744631730,0.00036093,71253.0,71252.0,1.01370993]
[1717744631923,0.00036093,71253.0,71252.0,0.99970993]
[1717744632184,0.00036093,71253.0,71252.0,1.01370993]
[1717744632882,0.00036093,71253.0,71252.0,1.02770993]
[1717744633135,0.00036093,71253.0,71252.0,1.01370993]
[1717744633970,0.00036093,71253.0,71252.0,1.02770993]
[1717744635016,0.00036093,71253.0,71252.0,1.05840284]
[1717744635223,0.00036093,71253.0,71252.0,1.07240284]
[1717744635428,0.00036093,71253.0,71252.0,1.05840284]
[1717744636364,0.00036093,71253.0,71252.0,1.07240284]
[1717744636765,0.00036093,71253.0,71252.0,1.05840284]
[1717744637260,0.00036093,71253.0,71252.0,1.07240284]
[1717744638014,0.00036093,71253.0,71252.0,1.05840284]
[1717744638223,0.00036093,71253.0,71252.0,1.17526684]
[1717744638416,0.00036093,71253.0,71252.0,1.07240284]
[1717744638621,0.00486,71259.0,71258.0,0.631005]
[1717744638855,0.00486,71259.0,71258.0,0.95784422]
[1717744639900,0.00486,71259.0,71258.0,0.97184422]
[1717744640324,0.00486,71259.0,71258.0,0.95784422]
[1717744641576,0.00486,71259.0,71258.0,0.97184422]
[1717744641776,0.00486,71259.0,71258.0,0.98584422]
[1717744641979,0.001,71280.0,71258.0,0.98584422]
[1717744642181,0.00229056,71289.0,71288.0,0.488076]
[1717744642437,0.1591,71308.0,71298.0,0.1]
[1717744642651,0.1591,71308.0,71298.0,0.44032824]
[1717744642895,0.1591,71308.0,71298.0,0.37837304]
[1717744643094,0.1591,71308.0,71298.0,0.51248424]
[1717744643292,0.1591,71308.0,71298.0,0.58058424]
[1717744643764,0.1591,71308.0,71298.0,0.52248424]
[1717744643947,0.1591,71308.0,71298.0,0.69238424]
[1717744644150,0.1591,71308.0,71298.0,0.68238424]
[1717744644423,0.1591,71308.0,71298.0,0.66690317]
[1717744644639,0.1591,71308.0,71298.0,0.82680317]
[1717744644854,0.1591,71308.0,71298.0,0.83680317]
[1717744645037,0.1591,71308.0,71298.0,0.82680317]
[1717744645248,0.1591,71308.0,71298.0,0.84080317]
[1717744648816,0.1591,71308.0,71298.0,0.85480317]
[1717744649046,0.1591,71308.0,71298.0,0.86880317]
[1717744649267,0.3481,71308.0,71298.0,0.84080317]
[1717744649447,0.3481,71308.0,71298.0,0.82680317]
[1717744649659,0.3481,71308.0,71298.0,0.84080317]
[1717744650027,0.3481,71308.0,71298.0,0.85480317]
[1717744650684,0.3481,71308.0,71298.0,0.87202094]
[1717744650906,0.01,71306.0,71298.0,0.87202094]
[1717744651108,0.3481,71308.0,71298.0,0.87202094]
[1717744652690,0.3481,71308.0,71298.0,0.92813494]
[1717744652901,0.01,71307.0,71298.0,0.92813494]
[1717744653963,0.1591,71308.0,71298.0,1.20864694]
[1717744654392,0.189,71305.0,71298.0,1.20864694]
[1717744655029,0.189,71305.0,71298.0,1.10864694]
[1717744655242,0.189,71305.0,71298.0,1.20864694]
[1717744656098,0.1591,71308.0,71298.0,1.20864694]
[1717744656298,0.189,71304.0,71298.0,1.20864694]
[1717744657817,0.0874,71309.0,71298.0,0.5860067]
[1717744657818,0.194,71299.0,71298.0,0.5860067]
[1717744658026,0.4243,71299.0,71298.0,0.5860067]
[1717744658239,0.4243,71299.0,71298.0,0.5580067]
[1717744658240,0.2343,71299.0,71298.0,0.5580067]
[1717744658455,0.4243,71299.0,71298.0,0.5580067]
[1717744658661,0.4233,71299.0,71298.0,0.56878893]
[1717744658888,0.42516,71299.0,71298.0,0.55478893]
[1717744659099,0.42516,71299.0,71298.0,0.54078893]
[1717744659310,0.42516,71299.0,71298.0,0.55478893]
[1717744659518,0.42516,71299.0,71298.0,0.56878893]
[1717744659945,0.42516,71299.0,71298.0,0.32853293]
[1717744660143,0.42516,71299.0,71298.0,0.22853293]
[1717744660346,0.42516,71299.0,71298.0,0.14523293]
[1717744660977,0.19,71294.0,71293.0,0.000946]
[1717744661180,0.4316,71294.0,71293.0,0.15968522]
[1717744661391,0.4316,71294.0,71293.0,0.25968522]
[1717744662220,0.4316,71294.0,71293.0,0.27368522]
[1717744662720,0.4316,71294.0,71293.0,0.25968522]
[1717744662891,0.4316,71294.0,71293.0,0.27368522]
[1717744663582,0.4316,71294.0,71293.0,0.25968522]